[Event "44th Chess Olympiad Open 2022"]
[Site "Chennai"]
[Date "2022.08.09"]
[Round "11.12"]
[White "Pechac, Jergus"]
[Black "Navara, David"]
[Result "1-0"]
[ECO "D38"]
[WhiteElo "2594"]
[BlackElo "2688"]
[Annotator "TA"]
[PlyCount "89"]
[EventDate "2022.07.29"]
[EventType "team-tourn"]
[EventCountry "IND"]
[SourceTitle "playchess.com"]
[Source "ChessBase"]
[SourceQuality "1"]
[WhiteTeam "Slovakia"]
[BlackTeam "Czech Republic"]
[WhiteTeamCountry "SVK"]
[BlackTeamCountry "CZE"]
[TimeControl "40/5400+30:1800+30"]

{[%evp 18,89,0,0,0,-12,-14,-8,-10,-27,-22,-24,-32,-45,0,0,0,0,-7,-10,-44,-47,0,0,0,-43,-43,-44,-43,-139,-125,-131,-126,-145,-139,-125,-50,-48,-10,-66,0,-44,0,-63,0,-44,-36,-66,0,-10,0,0,0,0,144,160,29975,29976,29975,29976,12841,12841,12841,12840,12837,2233,12836,12835,12836,12836,12837,12838,29987,29988]} 1. d4 {[%emt 0:00:05]} Nf6 {[%emt 0:00:04]} 2. c4 {[%emt 0:00:10]} e6 {[%emt 0:00:03]} 3. Nf3 {[%emt 0:00:28]} d5 {[%emt 0:00:03]} 4. Nc3 {[%emt 0:00:09]} Bb4 {[%emt 0:00:04]} 5. Bg5 {[%emt 0:00:26]} h6 {[%emt 0:00:09]} 6. Bxf6 {[%emt 0:00:08]} Qxf6 {[%emt 0:00:05]} 7. cxd5 {[%emt 0:01:03]} exd5 {[%emt 0:00:05]} 8. Rc1 {[%emt 0:00:16]} O-O {[%emt 0:03:24]} 9. a3 {[%emt 0:00:14]} Bxc3+ {[%emt 0:00:07]} 10. Rxc3 {[%emt 0:00:05]} c6 {[%emt 0:02:30] D38: Queen's Gambit Declined: Ragozin Defence (4 Nf3 Bb4).} 11. Rg1 $5 {[%emt 0:01:03][%mdl 4] [#] An interesting side line.} Bg4 $146 {[%emt 0:04:50]} ({Predecessor:} 11... Nd7 12. g4 Qd6 13. g5 Re8 14. Qc2 Qf4 15. Rg3 Nf8 16. gxh6 Qxh6 17. e3 Re4 18. Qb3 {0-1 (47) Cori,J (2652)-Mareco,S (2652) Chihuahua City 2022}) 12. Ne5 {[%emt 0:00:53]} Be6 {[%emt 0:00:14] The position is equal.} 13. g4 {[%emt 0:11:14][%cal Og4g5]} Nd7 {[%emt 0:00:45]} 14. Nxd7 {[%emt 0:06:44]} Bxd7 {[%emt 0:00:07]} 15. Qd2 {[%emt 0:00:27]} Rae8 {[%emt 0:22:14]} 16. g5 $1 {[%emt 0:02:53]} hxg5 {[%emt 0:00:09]} 17. Rxg5 {[%emt 0:00:29]} Re4 {[%emt 0:00:10]} 18. Rcg3 {[%emt 0:00:19]} g6 $36 {[%emt 0:00:09][%mdl 2048] White is under pressure.} 19. e3 {[%emt 0:00:42]} Rfe8 {[%emt 0:09:31]} (19... Rh4 $15 {feels stronger.}) 20. Bd3 $11 {[%emt 0:05:12]} Qxd4 $1 {[%emt 0:02:06]} (20... Rxd4 21. Qc3 Rf4 22. Rxg6+ $1 fxg6 23. Rxg6+ Kf7 24. Rxf6+ Rxf6 25. Qa5 $16) 21. Qc2 {[%emt 0:13:10] [#]} Qf6 $1 {[%emt 0:18:32][%cal Ob7b6]} 22. Bxe4 {[%emt 0:11:23]} Rxe4 {[%emt 0:00:07]} 23. Kf1 {[%emt 0:01:00]} ({Better is} 23. Qc3 $15 Qxc3+ 24. bxc3) 23... Rc4 $17 {[%emt 0:14:40][%mdl 1024] Black has strong compensation.} 24. Qb1 {[%emt 0:01:50][%cal Rg5g6]} Kf8 $1 {[%emt 0:00:10]} 25. b3 {[%emt 0:03:59]} Rh4 {[%emt 0:00:13]} 26. Kg1 {[%emt 0:00:36]} Qh8 {[%emt 0:06:52]} (26... a5 $17 27. Qc2 Bf5) 27. Qc1 $15 {[%emt 0:03:31]} Kg8 {[%emt 0:13:13]} (27... b6 $5 {[%cal Rh4h2]} 28. Rg2 Bh3 $15) 28. Qc5 {[%emt 0:08:36]} ({White should play} 28. Rg2 $11) 28... Bh3 {[%emt 0:00:32]} (28... Rxh2 29. Qxa7 Rh1+ 30. Kg2 $11) (28... Qa1+ $1 $15 29. Kg2 Qf6) 29. Qc1 {[%emt 0:00:17]} (29. Rxh3 $5 Rxh3 30. Qxa7 $11) 29... Bd7 {[%emt 0:00:38]} 30. Qc5 {[%emt 0:00:12]} Bh3 {[%emt 0:00:32] ( -> ...Qa1+)} (30... Rxh2 31. Qxa7 Rh1+ 32. Kg2 $11) 31. Qc1 {[%emt 0:00:08] Prevents Qa1.} Qf6 {[%emt 0:02:19]} 32. Qb1 {[%emt 0:03:49]} a5 {[%emt 0:00:56]} (32... Kf8 $15) 33. f4 $1 $11 {[%emt 0:02:08][%cal Rg5g6] And now Rxg6+! would win.} (33. Rxg6+ $2 fxg6 34. Rxg6+ Kh8 35. Rxf6 Rg4+ 36. Kh1 Bg2+ 37. Kg1 Be4+ 38. Kf1 Bxb1 $19) 33... Kh7 {[%emt 0:00:43]} 34. Re5 {[%emt 0:00:51]} d4 {[%emt 0:00:05]} 35. Qa1 {[%emt 0:03:12]} Qd6 {[%emt 0:01:05]} ({Don't do} 35... a4 36. Qxd4 axb3 37. Rh5+ $3 {[%mdl 512]} Kg7 38. Rxh4 $16) (35... d3 $11 36. Qd4 (36. Rh5+ Kg7 $15) 36... Bf5) 36. Qxd4 $16 {[%emt 0:01:33]} ({Of course not} 36. exd4 $6 Bf5 $11) 36... Qxa3 {[%emt 0:00:04] [#]} (36... Qxd4 $16 37. exd4 Be6) 37. Rxh3 $1 {[%emt 0:00:22][%mdl 512]} Qc1+ {[%emt 0:00:57]} 38. Kg2 {[%emt 0:00:16]} Qc2+ {[%emt 0:00:26]} 39. Kg3 {[%emt 0:00:11]} Rxh3+ {[%emt 0:00:08]} 40. Kxh3 {[%emt 0:00:05] White threatens Re8 and mate.} Qe2 {[%emt 0:00:57]} 41. Qe4 {[%emt 0:32:24] Threatens to win with Re7.} f5 {[%emt 0:03:53] [#]} 42. Qg2 $1 {[%emt 0:00:00]} Qh5+ {[%emt 0:01:44]} 43. Kg3 {[%emt 0:00:00]} Qd1 {[%emt 0:00:38]} 44. h3 {[%emt 0:00:00] Threatening mate with Re7+.} Qxb3 {[%emt 0:01:16]} 45. Re7+ {[%emt 0:00:00] Weighted Error Value: White=0.10 (very precise) /Black=0.41} 1-0

[Event "44th Chess Olympiad Open 2022"]
[Site "Chennai"]
[Date "2022.08.09"]
[Round "11.12"]
[White "Michalik, Peter"]
[Black "Repka, Christopher"]
[Result "1-0"]
[ECO "C11"]
[WhiteElo "2559"]
[BlackElo "2516"]
[Annotator "RC"]
[PlyCount "131"]
[EventDate "2022.07.29"]
[EventType "team-tourn"]
[EventCountry "IND"]
[SourceTitle "playchess.com"]
[Source "ChessBase"]
[SourceQuality "1"]
[WhiteTeam "Czech Republic"]
[BlackTeam "Slovakia"]
[WhiteTeamCountry "CZE"]
[BlackTeamCountry "SVK"]
[TimeControl "40/5400+30:1800+30"]

1. e4 {[%emt 0:00:04]} e6 {[%emt 0:00:03]} 2. d4 {[%emt 0:00:05]} d5 {[%emt 0:00:03]} 3. Nc3 {[%emt 0:00:06]} Nf6 {[%emt 0:00:03]} 4. e5 {[%emt 0:00:37]} Nfd7 {[%emt 0:00:03]} 5. f4 {[%emt 0:00:05]} c5 {[%emt 0:00:03]} 6. Nf3 {[%emt 0:00:05]} Nc6 {[%emt 0:00:04]} 7. Be3 {[%emt 0:00:05]} a6 {[%emt 0:00:03]} 8. a3 {[%emt 0:00:30]} cxd4 {[%emt 0:01:51]} 9. Nxd4 {[%emt 0:00:09]} Bc5 {[%emt 0:00:03]} 10. Qd2 {[%emt 0:01:55]} Bxd4 {[%emt 0:04:03]} 11. Bxd4 {[%emt 0:00:07]} Nxd4 {[%emt 0:00:06]} 12. Qxd4 {[%emt 0:00:05]} Qb6 {[%emt 0:00:04]} 13. Qxb6 {[%emt 0:04:38]} Nxb6 {[%emt 0:00:05]} 14. O-O-O {[%emt 0:00:09]} Bd7 {[%emt 0:00:03]} 15. Rd4 {[%emt 0:04:53]} Nc8 {[%emt 0:00:39]} 16. Be2 {[%emt 0:06:18]} h5 {[%emt 0:06:48]} 17. Rhd1 {[%emt 0:06:27]} Ne7 {[%emt 0:02:53]} 18. R4d2 {[%emt 0:12:59]} Rd8 {[%emt 0:03:27]} 19. Bd3 {[%emt 0:02:41]} g6 {[%emt 0:00:16]} 20. Ne2 {[%emt 0:00:25]} Nc6 {[%emt 0:00:59]} 21. Ng1 {[%emt 0:01:06]} Ke7 {[%emt 0:04:16]} 22. Nf3 {[%emt 0:07:03]} Rc8 {[%emt 0:00:06]} 23. Kb1 {[%emt 0:00:12]} Rc7 {[%emt 0:02:35]} 24. Ng5 {[%emt 0:11:15]} Rhc8 {[%emt 0:09:37]} 25. Be2 {[%emt 0:07:20]} Na7 {[%emt 0:05:56]} 26. Nh7 {[%emt 0:02:42]} Bb5 {[%emt 0:14:38]} 27. Bf3 {[%emt 0:01:20]} Ba4 {[%emt 0:10:48]} 28. Rc1 {[%emt 0:00:07]} Rc4 {[%emt 0:07:12]} 29. g3 {[%emt 0:01:00]} Nc6 {[%emt 0:04:34]} 30. Be2 {[%emt 0:03:46]} Re4 {[%emt 0:09:38]} 31. Nf6 {[%emt 0:04:13]} Rd4 {[%emt 0:10:34]} 32. Rcd1 {[%emt 0:00:25]} Rxd2 {[%emt 0:00:06]} 33. Rxd2 {[%emt 0:00:04]} Nb8 {[%emt 0:02:12]} 34. b3 {[%emt 0:03:17]} Bc6 {[%emt 0:00:04]} 35. Rd1 {[%emt 0:10:11]} Bb5 {[%emt 0:02:20]} 36. Bf3 {[%emt 0:01:33]} Bc6 {[%emt 0:01:05]} 37. Kc1 {[%emt 0:01:14]} a5 {[%emt 0:01:04]} 38. Kb2 {[%emt 0:00:46]} Na6 {[%emt 0:00:32]} 39. c4 {[%emt 0:00:46]} Nc7 {[%emt 0:00:31]} 40. cxd5 {[%emt 0:04:42]} exd5 {[%emt 0:00:06]} 41. Rc1 {[%emt 0:30:37]} Ra8 {[%emt 0:12:19]} 42. Rc5 {[%emt 0:00:00]} Ne6 {[%emt 0:05:01]} 43. Nxd5+ {[%emt 0:00:00]} Kf8 {[%emt 0:00:04]} 44. Rc1 {[%emt 0:00:00]} Rd8 {[%emt 0:01:41]} 45. Rd1 {[%emt 0:00:00]} Kg7 {[%emt 0:04:24]} 46. f5 {[%emt 0:00:00]} gxf5 {[%emt 0:00:27]} 47. Nf4 {[%emt 0:00:00]} Rxd1 {[%emt 0:06:32]} 48. Nxh5+ {[%emt 0:00:00]} Kh6 {[%emt 0:00:06]} 49. Bxd1 {[%emt 0:00:00]} Nd4 {[%emt 0:01:02]} 50. Nf4 {[%emt 0:00:00]} Bf3 {[%emt 0:00:03]} 51. e6 {[%emt 0:00:00]} fxe6 {[%emt 0:03:22]} 52. Nxe6 {[%emt 0:00:00]} Bxd1 {[%emt 0:00:06]} 53. Nxd4 {[%emt 0:00:00]} Kg5 {[%emt 0:00:04]} 54. h3 {[%emt 0:00:00]} Kf6 {[%emt 0:00:28]} 55. Kc1 {[%emt 0:00:00]} Bh5 {[%emt 0:00:05]} 56. Kd2 {[%emt 0:00:00]} Bf7 {[%emt 0:00:28]} 57. Ke3 {[%emt 0:00:03]} Ke5 {[%emt 0:00:02]} 58. h4 {[%emt 0:00:27]} b6 {[%emt 0:01:23]} 59. b4 {[%emt 0:03:10]} axb4 {[%emt 0:01:39]} 60. axb4 {[%emt 0:00:01]} Be8 {[%emt 0:01:00]} 61. Nf3+ {[%emt 0:02:02]} Kd5 {[%emt 0:00:05]} 62. Nd2 {[%emt 0:00:02]} b5 {[%emt 0:00:49]} 63. Kf4 {[%emt 0:00:40]} Kd4 {[%emt 0:00:04]} 64. Kxf5 {[%emt 0:00:20]} Ke3 {[%emt 0:01:11]} 65. Ne4 {[%emt 0:00:49]} Kf3 {[%emt 0:00:19]} 66. Nf6 {[%emt 0:00:14]} 1-0

[Event "44th Chess Olympiad Open 2022"]
[Site "Chennai"]
[Date "2022.08.09"]
[Round "11.12"]
[White "Druska, Juraj"]
[Black "Hracek, Zbynek"]
[Result "1/2-1/2"]
[ECO "B51"]
[WhiteElo "2519"]
[BlackElo "2555"]
[Annotator "RC"]
[PlyCount "81"]
[EventDate "2022.07.29"]
[EventType "team-tourn"]
[EventCountry "IND"]
[SourceTitle "playchess.com"]
[Source "ChessBase"]
[SourceQuality "1"]
[WhiteTeam "Slovakia"]
[BlackTeam "Czech Republic"]
[WhiteTeamCountry "SVK"]
[BlackTeamCountry "CZE"]
[TimeControl "40/5400+30:1800+30"]

1. e4 {[%emt 0:00:08]} c5 {[%emt 0:00:06]} 2. Nf3 {[%emt 0:00:14]} Nc6 {[%emt 0:00:11]} 3. Bb5 {[%emt 0:00:41]} d6 {[%emt 0:00:21]} 4. O-O {[%emt 0:00:39]} Bd7 {[%emt 0:00:05]} 5. Re1 {[%emt 0:00:14]} Nf6 {[%emt 0:00:05]} 6. c3 {[%emt 0:00:28]} a6 {[%emt 0:00:06]} 7. Bf1 {[%emt 0:00:10]} Bg4 {[%emt 0:00:08]} 8. h3 {[%emt 0:01:28]} Bxf3 {[%emt 0:00:06]} 9. Qxf3 {[%emt 0:00:07]} e6 {[%emt 0:00:08]} 10. d3 {[%emt 0:06:12]} Be7 {[%emt 0:00:08]} 11. Bf4 {[%emt 0:00:34]} O-O {[%emt 0:00:30]} 12. Nd2 {[%emt 0:00:29]} b5 {[%emt 0:19:14]} 13. Qd1 {[%emt 0:01:14]} Nd7 {[%emt 0:10:36]} 14. Be2 {[%emt 0:03:38]} Qb6 {[%emt 0:05:08]} 15. Be3 {[%emt 0:09:00]} Rad8 {[%emt 0:12:49]} 16. Nf3 {[%emt 0:15:02]} Nde5 {[%emt 0:01:29]} 17. Nd2 {[%emt 0:00:10]} Nd7 {[%emt 0:00:09]} 18. a4 {[%emt 0:14:02]} d5 {[%emt 0:02:59]} 19. axb5 {[%emt 0:02:07]} axb5 {[%emt 0:02:34]} 20. exd5 {[%emt 0:05:11]} exd5 {[%emt 0:00:03]} 21. d4 {[%emt 0:04:37]} cxd4 {[%emt 0:12:03]} 22. cxd4 {[%emt 0:00:09]} Bb4 {[%emt 0:00:48]} 23. Bd3 {[%emt 0:08:45]} Rfe8 {[%emt 0:08:46]} 24. Rf1 {[%emt 0:02:13]} Na5 {[%emt 0:09:49]} 25. b3 {[%emt 0:00:56]} Nf6 {[%emt 0:01:32]} 26. Bg5 {[%emt 0:09:31]} h6 {[%emt 0:04:17]} 27. Bxf6 {[%emt 0:00:59]} Qxf6 {[%emt 0:00:02]} 28. Bxb5 {[%emt 0:05:43]} Re7 {[%emt 0:04:24]} 29. Nf3 {[%emt 0:00:31]} Rc7 {[%emt 0:00:23]} 30. Rc1 {[%emt 0:04:07]} Rdc8 {[%emt 0:03:02]} 31. Rxc7 {[%emt 0:00:16]} Rxc7 {[%emt 0:00:02]} 32. Ba4 {[%emt 0:04:23]} g6 {[%emt 0:00:26]} 33. Qe2 {[%emt 0:00:25]} Kg7 {[%emt 0:00:20]} 34. Qb5 {[%emt 0:01:30]} Qd6 {[%emt 0:00:46]} 35. Ne5 {[%emt 0:00:27]} Rb7 {[%emt 0:01:17]} 36. Qd3 {[%emt 0:00:19]} Rc7 {[%emt 0:00:49]} 37. Rb1 {[%emt 0:00:28]} Nb7 {[%emt 0:01:00]} 38. Be8 {[%emt 0:01:48]} Nd8 {[%emt 0:00:51]} 39. Ra1 {[%emt 0:00:27]} Qf6 {[%emt 0:01:20]} 40. Nf3 {[%emt 0:00:34]} Ne6 {[%emt 0:00:54]} 41. Qd1 {[%emt 0:13:55]} 1/2-1/2

[Event "44th Chess Olympiad Open 2022"]
[Site "Chennai"]
[Date "2022.08.09"]
[Round "11.13"]
[White "Smirin, Ilia"]
[Black "Bogner, Sebastian"]
[Result "1/2-1/2"]
[ECO "A28"]
[WhiteElo "2601"]
[BlackElo "2545"]
[Annotator "RC"]
[PlyCount "104"]
[EventDate "2022.07.29"]
[EventType "team-tourn"]
[EventCountry "IND"]
[SourceTitle "playchess.com"]
[Source "ChessBase"]
[SourceQuality "1"]
[WhiteTeam "Israel"]
[BlackTeam "Switzerland"]
[WhiteTeamCountry "ISR"]
[BlackTeamCountry "SUI"]
[TimeControl "40/5400+30:1800+30"]

1. c4 {[%emt 0:00:08]} e5 {[%emt 0:00:58]} 2. Nc3 {[%emt 0:00:25]} Nf6 {[%emt 0:00:11]} 3. Nf3 {[%emt 0:00:46]} Nc6 {[%emt 0:00:10]} 4. a3 {[%emt 0:00:30]} d5 {[%emt 0:03:33]} 5. cxd5 {[%emt 0:00:06]} Nxd5 {[%emt 0:00:04]} 6. Qc2 {[%emt 0:00:56]} Nxc3 {[%emt 0:07:18]} 7. dxc3 {[%emt 0:02:21]} Bd6 {[%emt 0:03:32]} 8. e4 {[%emt 0:01:33]} O-O {[%emt 0:02:20]} 9. Be2 {[%emt 0:02:59]} Be6 {[%emt 0:14:15]} 10. Ng5 {[%emt 0:02:59]} Bd7 {[%emt 0:00:06]} 11. O-O {[%emt 0:00:05]} a5 {[%emt 0:01:51]} 12. a4 {[%emt 0:00:11]} Qe7 {[%emt 0:03:56]} 13. Nf3 {[%emt 0:06:01]} Nd8 {[%emt 0:06:03]} 14. Nd2 {[%emt 0:00:47]} Ne6 {[%emt 0:02:17]} 15. Nc4 {[%emt 0:01:52]} Nf4 {[%emt 0:03:31]} 16. Bxf4 {[%emt 0:02:29]} exf4 {[%emt 0:00:09]} 17. Nxd6 {[%emt 0:00:05]} Qxd6 {[%emt 0:03:27]} 18. Rfd1 {[%emt 0:06:24]} Qe7 {[%emt 0:00:15]} 19. Qd2 {[%emt 0:00:12]} Bc6 {[%emt 0:00:17]} 20. Qxf4 {[%emt 0:00:11]} Qxe4 {[%emt 0:01:08]} 21. Qxe4 {[%emt 0:00:34]} Bxe4 {[%emt 0:00:07]} 22. Rd7 {[%emt 0:00:40]} Rac8 {[%emt 0:03:55]} 23. Bc4 {[%emt 0:07:27]} Bg6 {[%emt 0:13:28]} 24. f4 {[%emt 0:03:41]} Be4 {[%emt 0:10:11]} 25. Re7 {[%emt 0:18:20]} Bc6 {[%emt 0:00:25]} 26. b4 {[%emt 0:00:42]} Rce8 {[%emt 0:12:05]} 27. Rxc7 {[%emt 0:02:38]} axb4 {[%emt 0:03:13]} 28. cxb4 {[%emt 0:01:05]} Re4 {[%emt 0:00:25]} 29. b5 {[%emt 0:00:21]} Rxc4 {[%emt 0:00:50]} 30. bxc6 {[%emt 0:00:06]} bxc6 {[%emt 0:03:43]} 31. g3 {[%emt 0:03:47]} Ra8 {[%emt 0:00:43]} 32. a5 {[%emt 0:00:14]} g6 {[%emt 0:01:21]} 33. a6 {[%emt 0:00:42]} c5 {[%emt 0:00:35]} 34. a7 {[%emt 0:00:37]} Kg7 {[%emt 0:00:26]} 35. Re1 {[%emt 0:07:08]} Ra4 {[%emt 0:00:28]} 36. Ree7 {[%emt 0:00:06]} Rf8 {[%emt 0:00:28]} 37. Rxc5 {[%emt 0:00:12]} Rd8 {[%emt 0:00:40]} 38. Rc2 {[%emt 0:02:51]} Rd6 {[%emt 0:00:22]} 39. Kg2 {[%emt 0:01:44]} h5 {[%emt 0:00:08]} 40. Rcc7 {[%emt 0:01:06]} Ra2+ {[%emt 0:00:58]} 41. Kf3 {[%emt 0:30:58]} Rf6 {[%emt 0:03:14]} 42. Ke4 {[%emt 0:00:00]} Ra1 {[%emt 0:01:29]} 43. h3 {[%emt 0:00:00]} Ra4+ {[%emt 0:00:45]} 44. Ke3 {[%emt 0:00:00]} Ra3+ {[%emt 0:00:15]} 45. Kd4 {[%emt 0:00:00]} h4 {[%emt 0:04:04]} 46. g4 {[%emt 0:00:00]} Rxf4+ {[%emt 0:00:19]} 47. Kc5 {[%emt 0:00:00]} Kh6 {[%emt 0:03:28]} 48. Rxf7 {[%emt 0:00:00]} Rfa4 {[%emt 0:00:17]} 49. Kb5 {[%emt 0:00:00]} Ra5+ {[%emt 0:00:17]} 50. Kb6 {[%emt 0:00:00]} Ra6+ {[%emt 0:00:10]} 51. Kb5 {[%emt 0:00:00]} R6a5+ {[%emt 0:00:16]} 52. Kb6 {[%emt 0:00:00]} Ra6+ {[%emt 0:02:13]} 1/2-1/2

[Event "44th Chess Olympiad Open 2022"]
[Site "Chennai"]
[Date "2022.08.09"]
[Round "11.13"]
[White "Georgiadis, Nico"]
[Black "Boruchovsky, Avital"]
[Result "1-0"]
[ECO "C65"]
[WhiteElo "2578"]
[BlackElo "2551"]
[Annotator "RC"]
[PlyCount "57"]
[EventDate "2022.07.29"]
[EventType "team-tourn"]
[EventCountry "IND"]
[SourceTitle "playchess.com"]
[Source "ChessBase"]
[SourceQuality "1"]
[WhiteTeam "Switzerland"]
[BlackTeam "Israel"]
[WhiteTeamCountry "SUI"]
[BlackTeamCountry "ISR"]
[TimeControl "40/5400+30:1800+30"]

1. e4 {[%emt 0:00:03]} e5 {[%emt 0:00:19]} 2. Nf3 {[%emt 0:00:06]} Nc6 {[%emt 0:00:03]} 3. Bb5 {[%emt 0:00:07]} Nf6 {[%emt 0:00:05]} 4. d3 {[%emt 0:00:14]} Bc5 {[%emt 0:00:11]} 5. Ba4 {[%emt 0:03:05]} O-O {[%emt 0:05:16]} 6. O-O {[%emt 0:05:15]} d6 {[%emt 0:05:58]} 7. c3 {[%emt 0:01:47]} Ne7 {[%emt 0:10:55]} 8. h3 {[%emt 0:02:24]} Ng6 {[%emt 0:01:08]} 9. d4 {[%emt 0:01:29]} Bb6 {[%emt 0:02:00]} 10. Re1 {[%emt 0:00:53]} c6 {[%emt 0:03:44]} 11. Bc2 {[%emt 0:01:06]} Nh5 {[%emt 0:06:37]} 12. Nxe5 {[%emt 0:32:27]} dxe5 {[%emt 0:00:39]} 13. Qxh5 {[%emt 0:00:05]} exd4 {[%emt 0:00:10]} 14. Rd1 {[%emt 0:06:44]} Re8 {[%emt 0:10:37]} 15. cxd4 {[%emt 0:03:41]} Bxd4 {[%emt 0:00:12]} 16. Be3 {[%emt 0:00:15]} Bxb2 {[%emt 0:02:21]} 17. Rxd8 {[%emt 0:00:40]} Rxd8 {[%emt 0:00:02]} 18. Nd2 {[%emt 0:05:53]} Bxa1 {[%emt 0:00:09]} 19. f4 {[%emt 0:04:55]} Nf8 {[%emt 0:09:14]} 20. f5 {[%emt 0:05:54]} Bd7 {[%emt 0:06:29]} 21. Nf3 {[%emt 0:01:57]} Be8 {[%emt 0:02:43]} 22. e5 {[%emt 0:08:46]} Rd5 {[%emt 0:07:24]} 23. Qh4 {[%emt 0:02:13]} a5 {[%emt 0:09:30]} 24. f6 {[%emt 0:04:41]} gxf6 {[%emt 0:00:38]} 25. Qxf6 {[%emt 0:00:51]} Ne6 {[%emt 0:04:40]} 26. Bh6 {[%emt 0:00:57]} Bd4+ {[%emt 0:03:00]} 27. Nxd4 {[%emt 0:00:05]} Rxd4 {[%emt 0:00:04]} 28. Qf5 {[%emt 0:00:17]} Nf8 {[%emt 0:00:06]} 29. Qg5+ {[%emt 0:00:04]} 1-0

[Event "44th Chess Olympiad Open 2022"]
[Site "Chennai"]
[Date "2022.08.09"]
[Round "11.13"]
[White "Postny, Evgeny"]
[Black "Baenziger, Fabian"]
[Result "1-0"]
[ECO "D23"]
[WhiteElo "2564"]
[BlackElo "2451"]
[Annotator "RC"]
[PlyCount "43"]
[EventDate "2022.07.29"]
[EventType "team-tourn"]
[EventCountry "IND"]
[SourceTitle "playchess.com"]
[Source "ChessBase"]
[SourceQuality "1"]
[WhiteTeam "Israel"]
[BlackTeam "Switzerland"]
[WhiteTeamCountry "ISR"]
[BlackTeamCountry "SUI"]
[TimeControl "40/5400+30:1800+30"]

1. d4 {[%emt 0:00:04]} d5 {[%emt 0:00:15]} 2. c4 {[%emt 0:00:07]} c6 {[%emt 0:00:14]} 3. Nf3 {[%emt 0:00:12]} Nf6 {[%emt 0:00:07]} 4. Qb3 {[%emt 0:00:11]} dxc4 {[%emt 0:00:22]} 5. Qxc4 {[%emt 0:00:06]} Bf5 {[%emt 0:00:28]} 6. g3 {[%emt 0:00:26]} e6 {[%emt 0:00:10]} 7. Bg2 {[%emt 0:00:08]} Be7 {[%emt 0:00:17]} 8. O-O {[%emt 0:00:11]} O-O {[%emt 0:00:05]} 9. Nbd2 {[%emt 0:00:16]} Nbd7 {[%emt 0:01:41]} 10. Qb3 {[%emt 0:00:36]} Qb6 {[%emt 0:00:25]} 11. Nc4 {[%emt 0:00:26]} Qa6 {[%emt 0:00:16]} 12. Bf4 {[%emt 0:00:35]} Nb6 {[%emt 0:07:23]} 13. Bd6 {[%emt 0:02:05]} Bxd6 {[%emt 0:06:36]} 14. Nxd6 {[%emt 0:00:15]} Bg6 {[%emt 0:00:03]} 15. a4 {[%emt 0:15:44]} Rfd8 {[%emt 0:08:07]} 16. a5 {[%emt 0:09:11]} Rxd6 {[%emt 0:13:47]} 17. axb6 {[%emt 0:00:13]} Qxe2 {[%emt 0:00:03]} 18. bxa7 {[%emt 0:02:06]} Rd7 {[%emt 0:00:32]} 19. Ne5 {[%emt 0:07:08]} Rc7 {[%emt 0:00:55]} 20. Nxc6 {[%emt 0:17:20]} Nd5 {[%emt 0:00:03]} 21. Bxd5 {[%emt 0:05:06]} exd5 {[%emt 0:00:07]} 22. Rfe1 {[%emt 0:00:09]} 1-0